[Event "Early-Titled-Tuesday-Blitz-January-23-2024"]
[Site "Chess.com"]
[Date "2024.01.23"]
[Round "8"]
[White "ChessQueen"]
[Black "viktorgen2021"]
[Result "1-0"]
[WhiteElo "2731"]
[BlackElo "2553"]
[TimeControl "180+1"]
[EndTime "9:27:45 PST"]
[Termination "ChessQueen won by resignation"]

1. d4 {[%clk 0:03:00.9]} 1... Nf6 {[%clk 0:02:59.9]} 2. c4 {[%clk 0:03:00]} 2...
g6 {[%clk 0:02:59.8]} 3. Nc3 {[%clk 0:02:59.5]} 3... Bg7 {[%clk 0:03:00.3]} 4.
e4 {[%clk 0:02:59.7]} 4... d6 {[%clk 0:03:00.3]} 5. Nf3 {[%clk 0:03:00.3]} 5...
O-O {[%clk 0:03:00.8]} 6. Be2 {[%clk 0:03:00.7]} 6... e5 {[%clk 0:03:01.5]} 7.
O-O {[%clk 0:03:00]} 7... Na6 {[%clk 0:03:01.8]} 8. Re1 {[%clk 0:02:57.2]} 8...
Qe8 {[%clk 0:02:59.7]} 9. dxe5 {[%clk 0:02:56.3]} 9... dxe5 {[%clk 0:02:59.8]}
10. Bg5 {[%clk 0:02:56.2]} 10... c6 {[%clk 0:02:59.1]} 11. Qc1 {[%clk
0:02:51.7]} 11... Nc5 {[%clk 0:02:50.3]} 12. Bh6 {[%clk 0:02:44.8]} 12... Qe7
{[%clk 0:02:46]} 13. Bxg7 {[%clk 0:02:36.6]} 13... Kxg7 {[%clk 0:02:46.9]} 14.
Qg5 {[%clk 0:02:29.7]} 14... Re8 {[%clk 0:02:37.4]} 15. Bf1 {[%clk 0:02:17.7]}
15... h6 {[%clk 0:02:37]} 16. Qe3 {[%clk 0:02:16.3]} 16... Bg4 {[%clk
0:02:28.6]} 17. b4 {[%clk 0:01:42.4]} 17... Na6 {[%clk 0:02:13.2]} 18. a3 {[%clk
0:01:37.7]} 18... Bxf3 {[%clk 0:02:13.2]} 19. Qxf3 {[%clk 0:01:37.3]} 19... Nc7
{[%clk 0:02:13.8]} 20. Red1 {[%clk 0:01:20.7]} 20... Rad8 {[%clk 0:02:12.4]} 21.
Qe3 {[%clk 0:01:19.7]} 21... b6 {[%clk 0:01:53.9]} 22. h3 {[%clk 0:01:19.8]}
22... Ne6 {[%clk 0:01:51.1]} 23. Rxd8 {[%clk 0:01:17.9]} 23... Rxd8 {[%clk
0:01:52]} 24. Rd1 {[%clk 0:01:18]} 24... Nd4 {[%clk 0:01:46.8]} 25. Bd3 {[%clk
0:01:08.4]} 25... a5 {[%clk 0:01:36.7]} 26. Na2 {[%clk 0:00:47.2]} 26... axb4
{[%clk 0:01:35.5]} 27. Nxb4 {[%clk 0:00:47.4]} 27... Nd7 {[%clk 0:01:26.3]} 28.
Bf1 {[%clk 0:00:42.3]} 28... Nc5 {[%clk 0:01:25.6]} 29. Rb1 {[%clk 0:00:42.1]}
29... Qa7 {[%clk 0:01:20.2]} 30. h4 {[%clk 0:00:34]} 30... h5 {[%clk 0:01:19.4]}
31. Qg5 {[%clk 0:00:32.6]} 31... f6 {[%clk 0:01:19.3]} 32. Qe3 {[%clk
0:00:32.3]} 32... Ra8 {[%clk 0:01:18.8]} 33. Nd3 {[%clk 0:00:28.1]} 33... b5
{[%clk 0:00:45.9]} 34. cxb5 {[%clk 0:00:26.2]} 34... cxb5 {[%clk 0:00:45.8]} 35.
Nxc5 {[%clk 0:00:23.8]} 35... Qxc5 {[%clk 0:00:46.7]} 36. Rxb5 {[%clk
0:00:23.8]} 36... Qxa3 {[%clk 0:00:41]} 37. Rb7+ {[%clk 0:00:23.9]} 37... Kg8
{[%clk 0:00:20.5]} 38. Qh6 {[%clk 0:00:23.8]} 38... Ne2+ {[%clk 0:00:16.2]} 39.
Bxe2 {[%clk 0:00:21.9]} 39... Qc1+ {[%clk 0:00:16.3]} 40. Qxc1 {[%clk
0:00:21.2]} 1-0

[Event "Early-Titled-Tuesday-Blitz-January-23-2024"]
[Site "Chess.com"]
[Date "2024.01.23"]
[Round "8"]
[White "scarabee43"]
[Black "Yurasova_Daria"]
[Result "1-0"]
[WhiteElo "2818"]
[BlackElo "2485"]
[TimeControl "180+1"]
[EndTime "9:27:46 PST"]
[Termination "scarabee43 won on time"]

1. Nf3 {[%clk 0:03:00.9]} 1... d5 {[%clk 0:02:50]} 2. e3 {[%clk 0:03:00.7]} 2...
c6 {[%clk 0:02:50.3]} 3. c4 {[%clk 0:03:00.8]} 3... Nf6 {[%clk 0:02:50.7]} 4. b3
{[%clk 0:03:01.3]} 4... Bf5 {[%clk 0:02:48.7]} 5. Bb2 {[%clk 0:03:01.5]} 5... e6
{[%clk 0:02:49.4]} 6. Be2 {[%clk 0:03:00]} 6... Be7 {[%clk 0:02:48.9]} 7. d3
{[%clk 0:02:58.3]} 7... Nbd7 {[%clk 0:02:48.6]} 8. Nh4 {[%clk 0:02:56]} 8... Bg6
{[%clk 0:02:48.5]} 9. Nd2 {[%clk 0:02:54.8]} 9... O-O {[%clk 0:02:43.5]} 10.
Nxg6 {[%clk 0:02:53.8]} 10... hxg6 {[%clk 0:02:42.5]} 11. O-O {[%clk 0:02:54.4]}
11... a5 {[%clk 0:02:41.8]} 12. e4 {[%clk 0:02:51.9]} 12... dxe4 {[%clk
0:02:34.4]} 13. dxe4 {[%clk 0:02:51.8]} 13... Nc5 {[%clk 0:02:30.5]} 14. Qc2
{[%clk 0:02:52.3]} 14... Qc7 {[%clk 0:02:28.5]} 15. Rad1 {[%clk 0:02:50.5]}
15... Rfd8 {[%clk 0:02:28]} 16. e5 {[%clk 0:02:47.1]} 16... Ne8 {[%clk
0:02:26.6]} 17. Nf3 {[%clk 0:02:44.2]} 17... Rxd1 {[%clk 0:02:22.8]} 18. Rxd1
{[%clk 0:02:44]} 18... Rd8 {[%clk 0:02:19.9]} 19. Bc3 {[%clk 0:02:40.6]} 19...
Rxd1+ {[%clk 0:02:15.1]} 20. Qxd1 {[%clk 0:02:40.9]} 20... Ne4 {[%clk
0:02:14.7]} 21. Bb2 {[%clk 0:02:35.4]} 21... Bc5 {[%clk 0:02:14]} 22. Bd4 {[%clk
0:02:33.7]} 22... Qe7 {[%clk 0:02:04.9]} 23. Qd3 {[%clk 0:02:29.9]} 23... Bxd4
{[%clk 0:02:01.4]} 24. Qxd4 {[%clk 0:02:30.4]} 24... Nc5 {[%clk 0:01:57]} 25. h4
{[%clk 0:02:30.1]} 25... Nc7 {[%clk 0:01:51.5]} 26. g3 {[%clk 0:02:21.2]} 26...
N7a6 {[%clk 0:01:50.8]} 27. Ng5 {[%clk 0:02:17.5]} 27... Qd7 {[%clk 0:01:43.4]}
28. Qf4 {[%clk 0:02:16.4]} 28... Nb4 {[%clk 0:01:38.8]} 29. h5 {[%clk 0:02:15]}
29... gxh5 {[%clk 0:01:09.2]} 30. Qe3 {[%clk 0:02:15.5]} 30... Nbd3 {[%clk
0:01:01.7]} 31. Bxh5 {[%clk 0:02:14.6]} 31... g6 {[%clk 0:01:01.4]} 32. Be2
{[%clk 0:02:12.1]} 32... Kg7 {[%clk 0:00:57.8]} 33. g4 {[%clk 0:02:01.6]} 33...
Nb4 {[%clk 0:00:57.4]} 34. Qh3 {[%clk 0:01:59.9]} 34... Nc2 {[%clk 0:00:18.4]}
35. Qh7+ {[%clk 0:01:53.4]} 35... Kf8 {[%clk 0:00:18.9]} 36. Qh8+ {[%clk
0:01:53.4]} 36... Ke7 {[%clk 0:00:19.5]} 37. Nh7 {[%clk 0:01:52.5]} 37... Qd8
{[%clk 0:00:16.1]} 38. Qf6+ {[%clk 0:01:51.1]} 38... Ke8 {[%clk 0:00:16.1]} 39.
Qg7 {[%clk 0:01:44.4]} 39... Qe7 {[%clk 0:00:15.4]} 40. Qg8+ {[%clk 0:01:40.8]}
40... Kd7 {[%clk 0:00:14.4]} 41. Qa8 {[%clk 0:01:40.2]} 41... Nd4 {[%clk
0:00:11]} 42. Nf6+ {[%clk 0:01:40.2]} 42... Kc7 {[%clk 0:00:10.3]} 43. Qxa5+
{[%clk 0:01:37.5]} 43... b6 {[%clk 0:00:10.8]} 44. Qd2 {[%clk 0:01:34]} 44...
Qd8 {[%clk 0:00:04.1]} 45. Kf1 {[%clk 0:01:34]} 45... Nxe2 {[%clk 0:00:03.3]}
46. Qxd8+ {[%clk 0:01:32.5]} 46... Kxd8 {[%clk 0:00:04.2]} 47. Kxe2 {[%clk
0:01:32.5]} 47... Ke7 {[%clk 0:00:03.5]} 48. Ke3 {[%clk 0:01:33.1]} 48... Na6
{[%clk 0:00:04.4]} 49. a3 {[%clk 0:01:27.3]} 49... Nc5 {[%clk 0:00:04.9]} 50. b4
{[%clk 0:01:28]} 50... Na4 {[%clk 0:00:05.3]} 51. Ne4 {[%clk 0:01:28]} 51... Nb2
{[%clk 0:00:05.4]} 52. Kd4 {[%clk 0:01:28.4]} 52... Nd1 {[%clk 0:00:03.4]} 53.
f4 {[%clk 0:01:28.2]} 53... Kd7 {[%clk 0:00:03.5]} 54. Nd6 {[%clk 0:01:26.6]}
54... Ke7 {[%clk 0:00:03]} 55. Nc8+ {[%clk 0:01:26.8]} 55... Kd7 {[%clk
0:00:03.9]} 56. Nxb6+ {[%clk 0:01:27.2]} 56... Kc7 {[%clk 0:00:04.8]} 57. c5
{[%clk 0:01:27.7]} 57... Nf2 {[%clk 0:00:02.6]} 58. g5 {[%clk 0:01:28.3]} 58...
Nh3 {[%clk 0:00:02.8]} 59. Ke3 {[%clk 0:01:28.8]} 1-0

[Event "Early-Titled-Tuesday-Blitz-January-23-2024"]
[Site "Chess.com"]
[Date "2024.01.23"]
[Round "8"]
[White "Slovineanu"]
[Black "koncheto"]
[Result "1/2-1/2"]
[WhiteElo "2419"]
[BlackElo "2554"]
[TimeControl "180+1"]
[EndTime "9:27:46 PST"]
[Termination "Game drawn by repetition"]

1. d4 {[%clk 0:02:57.9]} 1... Nf6 {[%clk 0:02:58.3]} 2. Nf3 {[%clk 0:02:57.7]}
2... e6 {[%clk 0:02:56.5]} 3. c4 {[%clk 0:02:57.6]} 3... c5 {[%clk 0:02:57.4]}
4. d5 {[%clk 0:02:56.3]} 4... exd5 {[%clk 0:02:58.3]} 5. cxd5 {[%clk 0:02:56.4]}
5... d6 {[%clk 0:02:59.2]} 6. e4 {[%clk 0:02:55.6]} 6... g6 {[%clk 0:03:00.1]}
7. Bd3 {[%clk 0:02:55.1]} 7... Bg4 {[%clk 0:02:57.3]} 8. O-O {[%clk 0:02:53.4]}
8... Bg7 {[%clk 0:02:57.1]} 9. Bf4 {[%clk 0:02:49.7]} 9... O-O {[%clk
0:02:56.8]} 10. Nbd2 {[%clk 0:02:47]} 10... Qe7 {[%clk 0:02:50.6]} 11. Re1
{[%clk 0:02:43.4]} 11... Nbd7 {[%clk 0:02:48.9]} 12. Nc4 {[%clk 0:02:39]} 12...
Ne8 {[%clk 0:02:47.8]} 13. a4 {[%clk 0:02:32]} 13... b6 {[%clk 0:02:40.1]} 14.
h3 {[%clk 0:02:27.8]} 14... Bxf3 {[%clk 0:02:40]} 15. Qxf3 {[%clk 0:02:28.4]}
15... Ne5 {[%clk 0:02:40.6]} 16. Qe2 {[%clk 0:02:14.8]} 16... Nxc4 {[%clk
0:02:37.3]} 17. Bxc4 {[%clk 0:02:14.4]} 17... Be5 {[%clk 0:02:38.2]} 18. Bh6
{[%clk 0:02:06.1]} 18... Bg7 {[%clk 0:02:38.2]} 19. Bxg7 {[%clk 0:02:01.7]}
19... Kxg7 {[%clk 0:02:38.4]} 20. f4 {[%clk 0:01:44.6]} 20... Rb8 {[%clk
0:02:28.8]} 21. Rad1 {[%clk 0:01:42.7]} 21... f6 {[%clk 0:02:18.3]} 22. Bb5
{[%clk 0:01:27.1]} 22... Nc7 {[%clk 0:02:16.2]} 23. e5 {[%clk 0:01:27.3]} 23...
fxe5 {[%clk 0:02:08.3]} 24. fxe5 {[%clk 0:01:23.6]} 24... Nxb5 {[%clk 0:02:08]}
25. Qxb5 {[%clk 0:01:20.6]} 25... dxe5 {[%clk 0:02:08.1]} 26. d6 {[%clk
0:01:19]} 26... Qf6 {[%clk 0:02:02.3]} 27. d7 {[%clk 0:01:10.3]} 27... Rbd8
{[%clk 0:01:55.6]} 28. Rd2 {[%clk 0:01:07.2]} 28... Rf7 {[%clk 0:01:51.9]} 29.
Red1 {[%clk 0:01:05.1]} 29... e4 {[%clk 0:01:51.2]} 30. Qe2 {[%clk 0:01:03]}
30... Qe6 {[%clk 0:01:49.7]} 31. Rd6 {[%clk 0:01:01.2]} 31... Qe5 {[%clk
0:01:45.2]} 32. R1d5 {[%clk 0:00:59.4]} 32... Qe7 {[%clk 0:01:41.3]} 33. b3
{[%clk 0:00:54.9]} 33... e3 {[%clk 0:01:40.9]} 34. Rd3 {[%clk 0:00:49.1]} 34...
Qe5 {[%clk 0:01:39.9]} 35. a5 {[%clk 0:00:39.3]} 35... b5 {[%clk 0:01:24.9]} 36.
R6d5 {[%clk 0:00:36.4]} 36... Qa1+ {[%clk 0:01:21.8]} 37. Kh2 {[%clk 0:00:35.7]}
37... Qxa5 {[%clk 0:01:21.4]} 38. Qxe3 {[%clk 0:00:28.5]} 38... Qc7+ {[%clk
0:01:20.3]} 39. Rd6 {[%clk 0:00:22.7]} 39... Rdxd7 {[%clk 0:00:49.4]} 40. Qe5+
{[%clk 0:00:22]} 40... Kf8 {[%clk 0:00:49.3]} 41. Qh8+ {[%clk 0:00:20.7]} 41...
Ke7 {[%clk 0:00:49.6]} 42. Qe5+ {[%clk 0:00:18.2]} 42... Kd8 {[%clk 0:00:47.4]}
43. Qh8+ {[%clk 0:00:17.4]} 43... Ke7 {[%clk 0:00:44.8]} 44. Qe5+ {[%clk
0:00:17.9]} 44... Kd8 {[%clk 0:00:38.7]} 45. Qh8+ {[%clk 0:00:10.4]} 45... Ke7
{[%clk 0:00:38.8]} 1/2-1/2

[Event "Early-Titled-Tuesday-Blitz-January-23-2024"]
[Site "Chess.com"]
[Date "2024.01.23"]
[Round "8"]
[White "Revan_2002"]
[Black "FREDERICKtheMATE"]
[Result "1-0"]
[WhiteElo "2408"]
[BlackElo "2565"]
[TimeControl "180+1"]
[EndTime "9:27:48 PST"]
[Termination "Revan_2002 won by resignation"]

1. b3 {[%clk 0:02:54.6]} 1... c5 {[%clk 0:02:59.6]} 2. Bb2 {[%clk 0:02:54.2]}
2... Nc6 {[%clk 0:02:58.7]} 3. e3 {[%clk 0:02:54.5]} 3... Nf6 {[%clk 0:02:56.6]}
4. Nf3 {[%clk 0:02:55]} 4... g6 {[%clk 0:02:56.4]} 5. Bb5 {[%clk 0:02:52.4]}
5... Bg7 {[%clk 0:02:56.2]} 6. Bxc6 {[%clk 0:02:52.2]} 6... dxc6 {[%clk
0:02:55.4]} 7. O-O {[%clk 0:02:52.7]} 7... O-O {[%clk 0:02:55.3]} 8. d3 {[%clk
0:02:52.3]} 8... Qc7 {[%clk 0:02:53.5]} 9. Nbd2 {[%clk 0:02:52]} 9... Re8 {[%clk
0:02:49.6]} 10. e4 {[%clk 0:02:51.1]} 10... e5 {[%clk 0:02:48.4]} 11. a3 {[%clk
0:02:50.2]} 11... a5 {[%clk 0:02:46.2]} 12. a4 {[%clk 0:02:48.4]} 12... b6
{[%clk 0:02:46.1]} 13. Nc4 {[%clk 0:02:48.5]} 13... Nh5 {[%clk 0:02:42.9]} 14.
h3 {[%clk 0:02:30.3]} 14... Nf4 {[%clk 0:02:41.8]} 15. Bc1 {[%clk 0:02:30.9]}
15... f5 {[%clk 0:02:36]} 16. Re1 {[%clk 0:02:28.7]} 16... fxe4 {[%clk 0:02:34]}
17. dxe4 {[%clk 0:02:28.5]} 17... Be6 {[%clk 0:02:31.2]} 18. Bxf4 {[%clk
0:02:26.5]} 18... exf4 {[%clk 0:02:30]} 19. Rb1 {[%clk 0:02:21.9]} 19... Bc3
{[%clk 0:02:29.6]} 20. Re2 {[%clk 0:02:15.2]} 20... Rad8 {[%clk 0:02:28.7]} 21.
Qc1 {[%clk 0:02:15]} 21... h6 {[%clk 0:02:23.8]} 22. Nb2 {[%clk 0:02:14.7]}
22... g5 {[%clk 0:02:21.9]} 23. Nd3 {[%clk 0:02:14.4]} 23... c4 {[%clk
0:02:19.9]} 24. bxc4 {[%clk 0:02:13.5]} 24... Bxc4 {[%clk 0:02:20.8]} 25. Qa3
{[%clk 0:02:02.7]} 25... Bg7 {[%clk 0:02:17.4]} 26. Ree1 {[%clk 0:02:00.5]}
26... b5 {[%clk 0:02:13.8]} 27. e5 {[%clk 0:01:24]} 27... b4 {[%clk 0:02:11.9]}
28. Qb2 {[%clk 0:01:18.2]} 28... Rd5 {[%clk 0:02:03.4]} 29. Re4 {[%clk
0:01:16.8]} 29... Bxd3 {[%clk 0:02:01.7]} 30. cxd3 {[%clk 0:01:16.4]} 30... Rxd3
{[%clk 0:02:01.2]} 31. Qc2 {[%clk 0:01:15]} 31... Rd5 {[%clk 0:02:00.5]} 32. e6
{[%clk 0:01:05.9]} 32... Qd6 {[%clk 0:01:58.6]} 33. Rbe1 {[%clk 0:01:04.7]}
33... Rc5 {[%clk 0:01:48.2]} 34. Qb1 {[%clk 0:00:56.8]} 34... Rc3 {[%clk
0:01:39.2]} 35. e7 {[%clk 0:00:54.8]} 35... Rd3 {[%clk 0:01:31.9]} 36. Ne5
{[%clk 0:00:29.4]} 36... Bxe5 {[%clk 0:01:26.3]} 37. Rxe5 {[%clk 0:00:30.3]}
37... Kf7 {[%clk 0:01:08.8]} 38. Qa2+ {[%clk 0:00:27.3]} 38... b3 {[%clk
0:01:07.9]} 39. Qe2 {[%clk 0:00:27.9]} 39... Kg7 {[%clk 0:00:55.6]} 40. Re6
{[%clk 0:00:24.4]} 40... Rd2 {[%clk 0:00:45.8]} 41. Rxd6 {[%clk 0:00:20]} 41...
Rxe2 {[%clk 0:00:45.9]} 42. Rxe2 {[%clk 0:00:20.9]} 42... c5 {[%clk 0:00:44.7]}
43. Rc6 {[%clk 0:00:18.7]} 43... Rb8 {[%clk 0:00:40]} 44. e8=Q {[%clk
0:00:16.9]} 44... Rxe8 {[%clk 0:00:39]} 45. Rxe8 {[%clk 0:00:17.8]} 45... b2
{[%clk 0:00:39.5]} 46. Rb8 {[%clk 0:00:18.5]} 1-0

[Event "Early-Titled-Tuesday-Blitz-January-23-2024"]
[Site "Chess.com"]
[Date "2024.01.23"]
[Round "8"]
[White "LangesNasenhaar"]
[Black "Glidzhian_Gor"]
[Result "0-1"]
[WhiteElo "2415"]
[BlackElo "2575"]
[TimeControl "180+1"]
[EndTime "9:27:50 PST"]
[Termination "Glidzhian_Gor won on time"]

1. d4 {[%clk 0:03:00.9]} 1... Nf6 {[%clk 0:02:59]} 2. Bg5 {[%clk 0:03:00.9]}
2... c5 {[%clk 0:02:57.6]} 3. Bxf6 {[%clk 0:02:57.7]} 3... gxf6 {[%clk
0:02:58.5]} 4. d5 {[%clk 0:02:58.4]} 4... Qb6 {[%clk 0:02:58.6]} 5. Qc1 {[%clk
0:02:57.8]} 5... f5 {[%clk 0:02:58]} 6. c4 {[%clk 0:02:58.3]} 6... Bh6 {[%clk
0:02:46.8]} 7. e3 {[%clk 0:02:56.6]} 7... f4 {[%clk 0:02:47]} 8. exf4 {[%clk
0:02:52.8]} 8... Bxf4 {[%clk 0:02:42.6]} 9. Qxf4 {[%clk 0:02:52.6]} 9... Qxb2
{[%clk 0:02:42.2]} 10. Ne2 {[%clk 0:02:53]} 10... Qxa1 {[%clk 0:02:40.1]} 11.
Nc3 {[%clk 0:02:53.1]} 11... d6 {[%clk 0:02:27.9]} 12. Bd3 {[%clk 0:02:41.5]}
12... Nd7 {[%clk 0:02:21.5]} 13. O-O {[%clk 0:02:39]} 13... Ne5 {[%clk
0:02:20.5]} 14. Qd2 {[%clk 0:02:19.9]} 14... Rg8 {[%clk 0:01:58.7]} 15. Kh1
{[%clk 0:02:12.7]} 15... Nxd3 {[%clk 0:01:01.5]} 16. Qxd3 {[%clk 0:02:12.7]}
16... Qb2 {[%clk 0:01:01.9]} 17. Qxh7 {[%clk 0:01:58]} 17... Rf8 {[%clk
0:01:01.9]} 18. Nb5 {[%clk 0:01:40.6]} 18... Kd8 {[%clk 0:00:52.2]} 19. Qh6
{[%clk 0:01:25.1]} 19... Rh8 {[%clk 0:00:49.9]} 20. Qf4 {[%clk 0:01:18.3]} 20...
Qe5 {[%clk 0:00:30.9]} 21. Qxe5 {[%clk 0:01:03.9]} 21... dxe5 {[%clk 0:00:31.8]}
22. d6 {[%clk 0:01:00.3]} 22... a6 {[%clk 0:00:30.8]} 23. dxe7+ {[%clk
0:00:54.6]} 23... Kxe7 {[%clk 0:00:31.7]} 24. Nc7 {[%clk 0:00:54.8]} 24... Rb8
{[%clk 0:00:31]} 25. Nd5+ {[%clk 0:00:47.7]} 25... Kd6 {[%clk 0:00:28.3]} 26.
Rd1 {[%clk 0:00:43.7]} 26... Be6 {[%clk 0:00:28.7]} 27. Nbc3 {[%clk 0:00:41.3]}
27... b5 {[%clk 0:00:28.9]} 28. Ne4+ {[%clk 0:00:39.3]} 28... Kc6 {[%clk
0:00:29.1]} 29. Ne7+ {[%clk 0:00:38]} 29... Kb6 {[%clk 0:00:28.7]} 30. Rd6+
{[%clk 0:00:26.4]} 30... Kc7 {[%clk 0:00:20.3]} 31. Rxa6 {[%clk 0:00:15]} 31...
bxc4 {[%clk 0:00:20.6]} 32. h3 {[%clk 0:00:12.5]} 32... c3 {[%clk 0:00:20.6]}
33. Nxc3 {[%clk 0:00:10.8]} 33... Ra8 {[%clk 0:00:21.2]} 34. Nb5+ {[%clk
0:00:05.8]} 34... Kd7 {[%clk 0:00:21.4]} 35. Rxa8 {[%clk 0:00:04]} 35... Rxa8
{[%clk 0:00:22.3]} 0-1

[Event "Early-Titled-Tuesday-Blitz-January-23-2024"]
[Site "Chess.com"]
[Date "2024.01.23"]
[Round "8"]
[White "Iball95"]
[Black "OparinGrigoriy"]
[Result "1-0"]
[WhiteElo "2783"]
[BlackElo "3006"]
[TimeControl "180+1"]
[EndTime "9:27:52 PST"]
[Termination "Iball95 won by checkmate"]

1. e4 {[%clk 0:03:00.9]} 1... Nf6 {[%clk 0:02:55.5]} 2. e5 {[%clk 0:03:00.7]}
2... Nd5 {[%clk 0:02:55.8]} 3. c4 {[%clk 0:03:01.4]} 3... Nb6 {[%clk 0:02:56.2]}
4. c5 {[%clk 0:03:02]} 4... Nd5 {[%clk 0:02:56.1]} 5. Bc4 {[%clk 0:03:02.7]}
5... e6 {[%clk 0:02:53.3]} 6. d4 {[%clk 0:03:02.7]} 6... d6 {[%clk 0:02:53.4]}
7. cxd6 {[%clk 0:03:03.6]} 7... cxd6 {[%clk 0:02:53.7]} 8. Nf3 {[%clk
0:03:04.1]} 8... Nb6 {[%clk 0:02:50.9]} 9. Bd3 {[%clk 0:03:01.1]} 9... Nc6
{[%clk 0:02:50.5]} 10. O-O {[%clk 0:02:53.4]} 10... Nb4 {[%clk 0:02:50.2]} 11.
Nc3 {[%clk 0:02:37.2]} 11... Nxd3 {[%clk 0:02:49.5]} 12. Qxd3 {[%clk 0:02:38.1]}
12... d5 {[%clk 0:02:47]} 13. Bg5 {[%clk 0:02:33.2]} 13... Qd7 {[%clk 0:02:41]}
14. Rac1 {[%clk 0:02:05.2]} 14... a6 {[%clk 0:02:41.1]} 15. Ne2 {[%clk
0:02:04.7]} 15... h6 {[%clk 0:02:40.3]} 16. Bh4 {[%clk 0:02:01.4]} 16... Nc4
{[%clk 0:02:37.6]} 17. b3 {[%clk 0:01:59]} 17... Na5 {[%clk 0:02:37.9]} 18. Rc2
{[%clk 0:01:45.2]} 18... Nc6 {[%clk 0:02:37.7]} 19. Qe3 {[%clk 0:01:38.6]} 19...
a5 {[%clk 0:02:36.7]} 20. Ne1 {[%clk 0:01:33.3]} 20... b6 {[%clk 0:02:32.4]} 21.
Nd3 {[%clk 0:01:32.8]} 21... Ba3 {[%clk 0:02:24.5]} 22. f4 {[%clk 0:01:28.3]}
22... Ba6 {[%clk 0:02:23.8]} 23. f5 {[%clk 0:01:10.6]} 23... exf5 {[%clk
0:02:24.7]} 24. Ndf4 {[%clk 0:00:54.7]} 24... Nd8 {[%clk 0:01:31.5]} 25. Bxd8
{[%clk 0:00:44.5]} 25... Rxd8 {[%clk 0:01:32.4]} 26. e6 {[%clk 0:00:44.7]} 26...
Qe7 {[%clk 0:01:32.6]} 27. Rc7 {[%clk 0:00:28.7]} 27... O-O {[%clk 0:00:40.5]}
28. Rxe7 {[%clk 0:00:28.2]} 28... Bxe7 {[%clk 0:00:41.4]} 29. exf7+ {[%clk
0:00:24]} 29... Rxf7 {[%clk 0:00:42.3]} 30. Re1 {[%clk 0:00:23.3]} 30... Bg5
{[%clk 0:00:39.8]} 31. Qg3 {[%clk 0:00:21.2]} 31... Re7 {[%clk 0:00:35.3]} 32.
h4 {[%clk 0:00:19.7]} 32... Bf6 {[%clk 0:00:20.2]} 33. Nh5 {[%clk 0:00:19.1]}
33... Bxh4 {[%clk 0:00:09.6]} 34. Qxh4 {[%clk 0:00:18]} 34... Rde8 {[%clk
0:00:10.3]} 35. Qg3 {[%clk 0:00:16.6]} 35... Kh8 {[%clk 0:00:08.1]} 36. Kh2
{[%clk 0:00:15.7]} 36... Bxe2 {[%clk 0:00:08.3]} 37. Rxe2 {[%clk 0:00:15.3]}
37... Rxe2 {[%clk 0:00:08]} 38. Qxg7# {[%clk 0:00:15.5]} 1-0

[Event "Early-Titled-Tuesday-Blitz-January-23-2024"]
[Site "Chess.com"]
[Date "2024.01.23"]
[Round "8"]
[White "Practical-Play"]
[Black "Hamisandwich"]
[Result "0-1"]
[WhiteElo "2522"]
[BlackElo "2710"]
[TimeControl "180+1"]
[EndTime "9:27:52 PST"]
[Termination "Hamisandwich won by resignation"]

1. e4 {[%clk 0:03:00.9]} 1... e5 {[%clk 0:02:58.4]} 2. Nf3 {[%clk 0:02:59.7]}
2... Nf6 {[%clk 0:02:57.9]} 3. Nc3 {[%clk 0:02:48.7]} 3... d6 {[%clk 0:02:51.3]}
4. d4 {[%clk 0:02:44.5]} 4... Nbd7 {[%clk 0:02:49.5]} 5. Be3 {[%clk 0:02:37.9]}
5... c6 {[%clk 0:02:45.6]} 6. Qd2 {[%clk 0:02:36.7]} 6... b5 {[%clk 0:02:43.8]}
7. a3 {[%clk 0:02:26]} 7... Bb7 {[%clk 0:02:27.1]} 8. h3 {[%clk 0:02:19.5]} 8...
a5 {[%clk 0:02:23.9]} 9. dxe5 {[%clk 0:02:01.3]} 9... dxe5 {[%clk 0:02:16.6]}
10. Bd3 {[%clk 0:01:58.1]} 10... Qc7 {[%clk 0:02:10]} 11. O-O {[%clk 0:01:56.5]}
11... Nc5 {[%clk 0:01:59.2]} 12. Rad1 {[%clk 0:01:10]} 12... Nxd3 {[%clk
0:01:35.9]} 13. Qxd3 {[%clk 0:00:56.6]} 13... Be7 {[%clk 0:01:30.9]} 14. Rfe1
{[%clk 0:00:51.2]} 14... O-O {[%clk 0:01:24.8]} 15. Nh4 {[%clk 0:00:44.3]} 15...
Rfd8 {[%clk 0:01:20.7]} 16. Qe2 {[%clk 0:00:41.4]} 16... b4 {[%clk 0:01:15.9]}
17. Na4 {[%clk 0:00:36.9]} 17... c5 {[%clk 0:01:13.1]} 18. Nf5 {[%clk
0:00:34.8]} 18... Bf8 {[%clk 0:00:55]} 19. Bg5 {[%clk 0:00:29.6]} 19... Rxd1
{[%clk 0:00:53.1]} 20. Rxd1 {[%clk 0:00:28.4]} 20... Nxe4 {[%clk 0:00:52.2]} 21.
Be3 {[%clk 0:00:16.8]} 21... Qc6 {[%clk 0:00:51.3]} 22. Qg4 {[%clk 0:00:15.4]}
22... h5 {[%clk 0:00:31.4]} 23. Qxh5 {[%clk 0:00:11.1]} 23... Qxa4 {[%clk
0:00:27.6]} 24. Nh6+ {[%clk 0:00:02.3]} 24... gxh6 {[%clk 0:00:26.3]} 25. Qg4+
{[%clk 0:00:02.7]} 25... Kh8 {[%clk 0:00:14.9]} 26. Qf5 {[%clk 0:00:02.3]} 26...
Qc6 {[%clk 0:00:13.1]} 27. Rd7 {[%clk 0:00:02.4]} 27... Nf6 {[%clk 0:00:10]} 28.
f3 {[%clk 0:00:01.8]} 28... Nxd7 {[%clk 0:00:08.1]} 29. Qxf7 {[%clk 0:00:01.8]}
29... Bg7 {[%clk 0:00:08.1]} 30. Qg6 {[%clk 0:00:02.1]} 30... Qxg6 {[%clk
0:00:06.9]} 0-1